{"text_format":"1","workbook":"xlsx","n_sheets":4,"sheets":["Данные","подсчет","города","Марки_авто"],"not_rendered":{"charts":0,"images":0,"macros":1,"external_links":0,"defined_names":7,"comments":0,"pivot_tables":0},"unopened":[],"bounds":{"document_bytes":16777216,"sheet_cells":100000,"rows_first":2000,"rows_last":500,"rows_between":2000,"halvings":0,"cell_chars":16384,"cell_head_chars":4096},"cells_cut":0,"cells_raw":0,"read":"whole","date_system":"1900"}

{"sheet":"Данные","index":0,"n_rows":1300,"n_cols":23,"rows_kept":1300,"cut":false,"hidden":false,"merged":[[0,0,1,22],[7,8,7,9]]}
["Данные о движениях терминалов :"]
[]
[]
[]
[]
["Дата",null,"Наименования терминала",null,"IMEI терминала",null,"Номер SIM карты",null,"Компания",null,"Город",null,"PIN код",null,"Марка",null,"Модель",null,"год выпуска",null,"Гос. Или VIN номер",null,"Монтажник:"]
[null,null,null,null,null,null,null,null,null,null,"Поиск региона:",null,null,null,"Поиск марки:"]
[]
[null,null,null,null,null,"+7"]
[null,null,null,null,null,"+7"]
[null,null,null,null,null,"+7"]
[null,null,null,null,null,"+7"]
[null,null,null,null,null,"+7"]
[null,null,null,null,null,"+7"]
[null,null,null,null,null,"+7"]
[null,null,null,null,null,"+7"]
[null,null,null,null,null,"+7"]
[null,null,null,null,null,"+7"]
[null,null,null,null,null,"+7"]
[null,null,null,null,null,"+7"]
[null,null,null,null,null,"+7"]
[null,null,null,null,null,"+7"]
[null,null,null,null,null,"+7"]
[null,null,null,null,null,"+7"]
[null,null,null,null,null,"+7"]
[null,null,null,null,null,"+7"]
[null,null,null,null,null,"+7"]
[null,null,null,null,null,"+7"]
[null,null,null,null,null,"+7"]
[null,null,null,null,null,"+7"]
[null,null,null,null,null,"+7"]
[null,null,null,null,null,"+7"]
[null,null,null,null,null,"+7"]
[null,null,null,null,null,"+7"]
[null,null,null,null,null,"+7"]
[null,null,null,null,null,"+7"]
[null,null,null,null,null,"+7"]
[null,null,null,null,null,"+7"]
[null,null,null,null,null,"+7"]
[null,null,null,null,null,"+7"]
[null,null,null,null,null,"+7"]
[null,null,null,null,null,"+7"]
[null,null,null,null,null,"+7"]
[null,null,null,null,null,"+7"]
[null,null,null,null,null,"+7"]
[null,null,null,null,null,"+7"]
[null,null,null,null,null,"+7"]
[null,null,null,null,null,"+7"]
[null,null,null,null,null,"+7"]
[null,null,null,null,null,"+7"]
[null,null,null,null,null,"+7"]
[null,null,null,null,null,"+7"]
[null,null,null,null,null,"+7"]
[null,null,null,null,null,"+7"]
[null,null,null,null,null,"+7"]
[null,null,null,null,null,"+7"]
[null,null,null,null,null,"+7"]
[null,null,null,null,null,"+7"]
[null,null,null,null,null,"+7"]
[null,null,null,null,null,"+7"]
[null,null,null,null,null,"+7"]
[null,null,null,null,null,"+7"]
[null,null,null,null,null,"+7"]
[null,null,null,null,null,"+7"]
[null,null,null,null,null,"+7"]
[null,null,null,null,null,"+7"]
[null,null,null,null,null,"+7"]
[null,null,null,null,null,"+7"]
[null,null,null,null,null,"+7"]
[null,null,null,null,null,"+7"]
[null,null,null,null,null,"+7"]
[null,null,null,null,null,"+7"]
[null,null,null,null,null,"+7"]
[null,null,null,null,null,"+7"]
[null,null,null,null,null,"+7"]
[null,null,null,null,null,"+7"]
[null,null,null,null,null,"+7"]
[null,null,null,null,null,"+7"]
[null,null,null,null,null,"+7"]
[null,null,null,null,null,"+7"]
[null,null,null,null,null,"+7"]
[null,null,null,null,null,"+7"]
[null,null,null,null,null,"+7"]
[null,null,null,null,null,"+7"]
[null,null,null,null,null,"+7"]
[null,null,null,null,null,"+7"]
[null,null,null,null,null,"+7"]
[null,null,null,null,null,"+7"]
[null,null,null,null,null,"+7"]
[null,null,null,null,null,"+7"]
[null,null,null,null,null,"+7"]
[null,null,null,null,null,"+7"]
[null,null,null,null,null,"+7"]
[null,null,null,null,null,"+7"]
[null,null,null,null,null,"+7"]
[null,null,null,null,null,"+7"]
[null,null,null,null,null,"+7"]
[null,null,null,null,null,"+7"]
[null,null,null,null,null,"+7"]
[null,null,null,null,null,"+7"]
[null,null,null,null,null,"+7"]
[null,null,null,null,null,"+7"]
[null,null,null,null,null,"+7"]
[null,null,null,null,null,"+7"]
[null,null,null,null,null,"+7"]
[null,null,null,null,null,"+7"]
[null,null,null,null,null,"+7"]
[null,null,null,null,null,"+7"]
[null,null,null,null,null,"+7"]
[null,null,null,null,null,"+7"]
[null,null,null,null,null,"+7"]
[null,null,null,null,null,"+7"]
[null,null,null,null,null,"+7"]
[null,null,null,null,null,"+7"]
[null,null,null,null,null,"+7"]
[null,null,null,null,null,"+7"]
[null,null,null,null,null,"+7"]
[null,null,null,null,null,"+7"]
[null,null,null,null,null,"+7"]
[null,null,null,null,null,"+7"]
[null,null,null,null,null,"+7"]
[null,null,null,null,null,"+7"]
[null,null,null,null,null,"+7"]
[null,null,null,null,null,"+7"]
[null,null,null,null,null,"+7"]
[null,null,null,null,null,"+7"]
[null,null,null,null,null,"+7"]
[null,null,null,null,null,"+7"]
[null,null,null,null,null,"+7"]
[null,null,null,null,null,"+7"]
[null,null,null,null,null,"+7"]
[null,null,null,null,null,"+7"]
[null,null,null,null,null,"+7"]
[null,null,null,null,null,"+7"]
[null,null,null,null,null,"+7"]
[null,null,null,null,null,"+7"]
[null,null,null,null,null,"+7"]
[null,null,null,null,null,"+7"]
[null,null,null,null,null,"+7"]
[null,null,null,null,null,"+7"]
[null,null,null,null,null,"+7"]
[null,null,null,null,null,"+7"]
[null,null,null,null,null,"+7"]
[null,null,null,null,null,"+7"]
[null,null,null,null,null,"+7"]
[null,null,null,null,null,"+7"]
[null,null,null,null,null,"+7"]
[null,null,null,null,null,"+7"]
[null,null,null,null,null,"+7"]
[null,null,null,null,null,"+7"]
[null,null,null,null,null,"+7"]
[null,null,null,null,null,"+7"]
[null,null,null,null,null,"+7"]
[null,null,null,null,null,"+7"]
[null,null,null,null,null,"+7"]
[null,null,null,null,null,"+7"]
[null,null,null,null,null,"+7"]
[null,null,null,null,null,"+7"]
[null,null,null,null,null,"+7"]
[null,null,null,null,null,"+7"]
[null,null,null,null,null,"+7"]
[null,null,null,null,null,"+7"]
[null,null,null,null,null,"+7"]
[null,null,null,null,null,"+7"]
[null,null,null,null,null,"+7"]
[null,null,null,null,null,"+7"]
[null,null,null,null,null,"+7"]
[null,null,null,null,null,"+7"]
[null,null,null,null,null,"+7"]
[null,null,null,null,null,"+7"]
[null,null,null,null,null,"+7"]
[null,null,null,null,null,"+7"]
[null,null,null,null,null,"+7"]
[null,null,null,null,null,"+7"]
[null,null,null,null,null,"+7"]
[null,null,null,null,null,"+7"]
[null,null,null,null,null,"+7"]
[null,null,null,null,null,"+7"]
[null,null,null,null,null,"+7"]
[null,null,null,null,null,"+7"]
[null,null,null,null,null,"+7"]
[null,null,null,null,null,"+7"]
[null,null,null,null,null,"+7"]
[null,null,null,null,null,"+7"]
[null,null,null,null,null,"+7"]
[null,null,null,null,null,"+7"]
[null,null,null,null,null,"+7"]
[null,null,null,null,null,"+7"]
[null,null,null,null,null,"+7"]
[null,null,null,null,null,"+7"]
[null,null,null,null,null,"+7"]
[null,null,null,null,null,"+7"]
[null,null,null,null,null,"+7"]
[null,null,null,null,null,"+7"]
[null,null,null,null,null,"+7"]
[null,null,null,null,null,"+7"]
[null,null,null,null,null,"+7"]
[null,null,null,null,null,"+7"]
[null,null,null,null,null,"+7"]
[null,null,null,null,null,"+7"]
[null,null,null,null,null,"+7"]
[null,null,null,null,null,"+7"]
[null,null,null,null,null,"+7"]
[null,null,null,null,null,"+7"]
[null,null,null,null,null,"+7"]
[null,null,null,null,null,"+7"]
[null,null,null,null,null,"+7"]
[null,null,null,null,null,"+7"]
[null,null,null,null,null,"+7"]
[null,null,null,null,null,"+7"]
[null,null,null,null,null,"+7"]
[null,null,null,null,null,"+7"]
[null,null,null,null,null,"+7"]
[null,null,null,null,null,"+7"]
[null,null,null,null,null,"+7"]
[null,null,null,null,null,"+7"]
[null,null,null,null,null,"+7"]
[null,null,null,null,null,"+7"]
[null,null,null,null,null,"+7"]
[null,null,null,null,null,"+7"]
[null,null,null,null,null,"+7"]
[null,null,null,null,null,"+7"]
[null,null,null,null,null,"+7"]
[null,null,null,null,null,"+7"]
[null,null,null,null,null,"+7"]
[null,null,null,null,null,"+7"]
[null,null,null,null,null,"+7"]
[null,null,null,null,null,"+7"]
[null,null,null,null,null,"+7"]
[null,null,null,null,null,"+7"]
[null,null,null,null,null,"+7"]
[null,null,null,null,null,"+7"]
[null,null,null,null,null,"+7"]
[null,null,null,null,null,"+7"]
[null,null,null,null,null,"+7"]
[null,null,null,null,null,"+7"]
[null,null,null,null,null,"+7"]
[null,null,null,null,null,"+7"]
[null,null,null,null,null,"+7"]
[null,null,null,null,null,"+7"]
[null,null,null,null,null,"+7"]
[null,null,null,null,null,"+7"]
[null,null,null,null,null,"+7"]
[null,null,null,null,null,"+7"]
[null,null,null,null,null,"+7"]
[null,null,null,null,null,"+7"]
[null,null,null,null,null,"+7"]
[null,null,null,null,null,"+7"]
[null,null,null,null,null,"+7"]
[null,null,null,null,null,"+7"]
[null,null,null,null,null,"+7"]
[null,null,null,null,null,"+7"]
[null,null,null,null,null,"+7"]
[null,null,null,null,null,"+7"]
[null,null,null,null,null,"+7"]
[null,null,null,null,null,"+7"]
[null,null,null,null,null,"+7"]
[null,null,null,null,null,"+7"]
[null,null,null,null,null,"+7"]
[null,null,null,null,null,"+7"]
[null,null,null,null,null,"+7"]
[null,null,null,null,null,"+7"]
[null,null,null,null,null,"+7"]
[null,null,null,null,null,"+7"]
[null,null,null,null,null,"+7"]
[null,null,null,null,null,"+7"]
[null,null,null,null,null,"+7"]
[null,null,null,null,null,"+7"]
[null,null,null,null,null,"+7"]
[null,null,null,null,null,"+7"]
[null,null,null,null,null,"+7"]
[null,null,null,null,null,"+7"]
[null,null,null,null,null,"+7"]
[null,null,null,null,null,"+7"]
[null,null,null,null,null,"+7"]
[null,null,null,null,null,"+7"]
[null,null,null,null,null,"+7"]
[null,null,null,null,null,"+7"]
[null,null,null,null,null,"+7"]
[null,null,null,null,null,"+7"]
[null,null,null,null,null,"+7"]
[null,null,null,null,null,"+7"]
[null,null,null,null,null,"+7"]
[null,null,null,null,null,"+7"]
[null,null,null,null,null,"+7"]
[null,null,null,null,null,"+7"]
[null,null,null,null,null,"+7"]
[null,null,null,null,null,"+7"]
[null,null,null,null,null,"+7"]
[null,null,null,null,null,"+7"]
[null,null,null,null,null,"+7"]
[null,null,null,null,null,"+7"]
[null,null,null,null,null,"+7"]
[null,null,null,null,null,"+7"]
[null,null,null,null,null,"+7"]
[null,null,null,null,null,"+7"]
[null,null,null,null,null,"+7"]
[null,null,null,null,null,"+7"]
[null,null,null,null,null,"+7"]
[null,null,null,null,null,"+7"]
[null,null,null,null,null,"+7"]
[null,null,null,null,null,"+7"]
[null,null,null,null,null,"+7"]
[null,null,null,null,null,"+7"]
[null,null,null,null,null,"+7"]
[null,null,null,null,null,"+7"]
[null,null,null,null,null,"+7"]
[null,null,null,null,null,"+7"]
[null,null,null,null,null,"+7"]
[null,null,null,null,null,"+7"]
[null,null,null,null,null,"+7"]
[null,null,null,null,null,"+7"]
[null,null,null,null,null,"+7"]
[null,null,null,null,null,"+7"]
[null,null,null,null,null,"+7"]
[null,null,null,null,null,"+7"]
[null,null,null,null,null,"+7"]
[null,null,null,null,null,"+7"]
[null,null,null,null,null,"+7"]
[null,null,null,null,null,"+7"]
[null,null,null,null,null,"+7"]
[null,null,null,null,null,"+7"]
[null,null,null,null,null,"+7"]
[null,null,null,null,null,"+7"]
[null,null,null,null,null,"+7"]
[null,null,null,null,null,"+7"]
[null,null,null,null,null,"+7"]
[null,null,null,null,null,"+7"]
[null,null,null,null,null,"+7"]
[null,null,null,null,null,"+7"]
[null,null,null,null,null,"+7"]
[null,null,null,null,null,"+7"]
[null,null,null,null,null,"+7"]
[null,null,null,null,null,"+7"]
[null,null,null,null,null,"+7"]
[null,null,null,null,null,"+7"]
[null,null,null,null,null,"+7"]
[null,null,null,null,null,"+7"]
[null,null,null,null,null,"+7"]
[null,null,null,null,null,"+7"]
[null,null,null,null,null,"+7"]
[null,null,null,null,null,"+7"]
[null,null,null,null,null,"+7"]
[null,null,null,null,null,"+7"]
[null,null,null,null,null,"+7"]
[null,null,null,null,null,"+7"]
[null,null,null,null,null,"+7"]
[null,null,null,null,null,"+7"]
[null,null,null,null,null,"+7"]
[null,null,null,null,null,"+7"]
[null,null,null,null,null,"+7"]
[null,null,null,null,null,"+7"]
[null,null,null,null,null,"+7"]
[null,null,null,null,null,"+7"]
[null,null,null,null,null,"+7"]
[null,null,null,null,null,"+7"]
[null,null,null,null,null,"+7"]
[null,null,null,null,null,"+7"]
[null,null,null,null,null,"+7"]
[null,null,null,null,null,"+7"]
[null,null,null,null,null,"+7"]
[null,null,null,null,null,"+7"]
[null,null,null,null,null,"+7"]
[null,null,null,null,null,"+7"]
[null,null,null,null,null,"+7"]
[null,null,null,null,null,"+7"]
[null,null,null,null,null,"+7"]
[null,null,null,null,null,"+7"]
[null,null,null,null,null,"+7"]
[null,null,null,null,null,"+7"]
[null,null,null,null,null,"+7"]
[null,null,null,null,null,"+7"]
[null,null,null,null,null,"+7"]
[null,null,null,null,null,"+7"]
[null,null,null,null,null,"+7"]
[null,null,null,null,null,"+7"]
[null,null,null,null,null,"+7"]
[null,null,null,null,null,"+7"]
[null,null,null,null,null,"+7"]
[null,null,null,null,null,"+7"]
[null,null,null,null,null,"+7"]
[null,null,null,null,null,"+7"]
[null,null,null,null,null,"+7"]
[null,null,null,null,null,"+7"]
[null,null,null,null,null,"+7"]
[null,null,null,null,null,"+7"]
[null,null,null,null,null,"+7"]
[null,null,null,null,null,"+7"]
[null,null,null,null,null,"+7"]
[null,null,null,null,null,"+7"]
[null,null,null,null,null,"+7"]
[null,null,null,null,null,"+7"]
[null,null,null,null,null,"+7"]
[null,null,null,null,null,"+7"]
[null,null,null,null,null,"+7"]
[null,null,null,null,null,"+7"]
[null,null,null,null,null,"+7"]
[null,null,null,null,null,"+7"]
[null,null,null,null,null,"+7"]
[null,null,null,null,null,"+7"]
[null,null,null,null,null,"+7"]
[null,null,null,null,null,"+7"]
[null,null,null,null,null,"+7"]
[null,null,null,null,null,"+7"]
[null,null,null,null,null,"+7"]
[null,null,null,null,null,"+7"]
[null,null,null,null,null,"+7"]
[null,null,null,null,null,"+7"]
[null,null,null,null,null,"+7"]
[null,null,null,null,null,"+7"]
[null,null,null,null,null,"+7"]
[null,null,null,null,null,"+7"]
[null,null,null,null,null,"+7"]
[null,null,null,null,null,"+7"]
[null,null,null,null,null,"+7"]
[null,null,null,null,null,"+7"]
[null,null,null,null,null,"+7"]
[null,null,null,null,null,"+7"]
[null,null,null,null,null,"+7"]
[null,null,null,null,null,"+7"]
[null,null,null,null,null,"+7"]
[null,null,null,null,null,"+7"]
[null,null,null,null,null,"+7"]
[null,null,null,null,null,"+7"]
[null,null,null,null,null,"+7"]
[null,null,null,null,null,"+7"]
[null,null,null,null,null,"+7"]
[null,null,null,null,null,"+7"]
[null,null,null,null,null,"+7"]
[null,null,null,null,null,"+7"]
[null,null,null,null,null,"+7"]
[null,null,null,null,null,"+7"]
[null,null,null,null,null,"+7"]
[null,null,null,null,null,"+7"]
[null,null,null,null,null,"+7"]
[null,null,null,null,null,"+7"]
[null,null,null,null,null,"+7"]
[null,null,null,null,null,"+7"]
[null,null,null,null,null,"+7"]
[null,null,null,null,null,"+7"]
[null,null,null,null,null,"+7"]
[null,null,null,null,null,"+7"]
[null,null,null,null,null,"+7"]
[null,null,null,null,null,"+7"]
[null,null,null,null,null,"+7"]
[null,null,null,null,null,"+7"]
[null,null,null,null,null,"+7"]
[null,null,null,null,null,"+7"]
[null,null,null,null,null,"+7"]
[null,null,null,null,null,"+7"]
[null,null,null,null,null,"+7"]
[null,null,null,null,null,"+7"]
[null,null,null,null,null,"+7"]
[null,null,null,null,null,"+7"]
[null,null,null,null,null,"+7"]
[null,null,null,null,null,"+7"]
[null,null,null,null,null,"+7"]
[null,null,null,null,null,"+7"]
[null,null,null,null,null,"+7"]
[null,null,null,null,null,"+7"]
[null,null,null,null,null,"+7"]
[null,null,null,null,null,"+7"]
[null,null,null,null,null,"+7"]
[null,null,null,null,null,"+7"]
[null,null,null,null,null,"+7"]
[null,null,null,null,null,"+7"]
[null,null,null,null,null,"+7"]
[null,null,null,null,null,"+7"]
[null,null,null,null,null,"+7"]
[null,null,null,null,null,"+7"]
[null,null,null,null,null,"+7"]
[null,null,null,null,null,"+7"]
[null,null,null,null,null,"+7"]
[null,null,null,null,null,"+7"]
[null,null,null,null,null,"+7"]
[null,null,null,null,null,"+7"]
[null,null,null,null,null,"+7"]
[null,null,null,null,null,"+7"]
[null,null,null,null,null,"+7"]
[null,null,null,null,null,"+7"]
[null,null,null,null,null,"+7"]
[null,null,null,null,null,"+7"]
[null,null,null,null,null,"+7"]
[null,null,null,null,null,"+7"]
[null,null,null,null,null,"+7"]
[null,null,null,null,null,"+7"]
[null,null,null,null,null,"+7"]
[null,null,null,null,null,"+7"]
[null,null,null,null,null,"+7"]
[null,null,null,null,null,"+7"]
[null,null,null,null,null,"+7"]
[null,null,null,null,null,"+7"]
[null,null,null,null,null,"+7"]
[null,null,null,null,null,"+7"]
[null,null,null,null,null,"+7"]
[null,null,null,null,null,"+7"]
[null,null,null,null,null,"+7"]
[null,null,null,null,null,"+7"]
[null,null,null,null,null,"+7"]
[null,null,null,null,null,"+7"]
[null,null,null,null,null,"+7"]
[null,null,null,null,null,"+7"]
[null,null,null,null,null,"+7"]
[null,null,null,null,null,"+7"]
[null,null,null,null,null,"+7"]
[null,null,null,null,null,"+7"]
[null,null,null,null,null,"+7"]
[null,null,null,null,null,"+7"]
[null,null,null,null,null,"+7"]
[null,null,null,null,null,"+7"]
[null,null,null,null,null,"+7"]
[null,null,null,null,null,"+7"]
[null,null,null,null,null,"+7"]
[null,null,null,null,null,"+7"]
[null,null,null,null,null,"+7"]
[null,null,null,null,null,"+7"]
[null,null,null,null,null,"+7"]
[null,null,null,null,null,"+7"]
[null,null,null,null,null,"+7"]
[null,null,null,null,null,"+7"]
[null,null,null,null,null,"+7"]
[null,null,null,null,null,"+7"]
[null,null,null,null,null,"+7"]
[null,null,null,null,null,"+7"]
[null,null,null,null,null,"+7"]
[null,null,null,null,null,"+7"]
[null,null,null,null,null,"+7"]
[null,null,null,null,null,"+7"]
[null,null,null,null,null,"+7"]
[null,null,null,null,null,"+7"]
[null,null,null,null,null,"+7"]
[null,null,null,null,null,"+7"]
[null,null,null,null,null,"+7"]
[null,null,null,null,null,"+7"]
[null,null,null,null,null,"+7"]
[null,null,null,null,null,"+7"]
[null,null,null,null,null,"+7"]
[null,null,null,null,null,"+7"]
[null,null,null,null,null,"+7"]
[null,null,null,null,null,"+7"]
[null,null,null,null,null,"+7"]
[null,null,null,null,null,"+7"]
[null,null,null,null,null,"+7"]
[null,null,null,null,null,"+7"]
[null,null,null,null,null,"+7"]
[null,null,null,null,null,"+7"]
[null,null,null,null,null,"+7"]
[null,null,null,null,null,"+7"]
[null,null,null,null,null,"+7"]
[null,null,null,null,null,"+7"]
[null,null,null,null,null,"+7"]
[null,null,null,null,null,"+7"]
[null,null,null,null,null,"+7"]
[null,null,null,null,null,"+7"]
[null,null,null,null,null,"+7"]
[null,null,null,null,null,"+7"]
[null,null,null,null,null,"+7"]
[null,null,null,null,null,"+7"]
[null,null,null,null,null,"+7"]
[null,null,null,null,null,"+7"]
[null,null,null,null,null,"+7"]
[null,null,null,null,null,"+7"]
[null,null,null,null,null,"+7"]
[null,null,null,null,null,"+7"]
[null,null,null,null,null,"+7"]
[null,null,null,null,null,"+7"]
[null,null,null,null,null,"+7"]
[null,null,null,null,null,"+7"]
[null,null,null,null,null,"+7"]
[null,null,null,null,null,"+7"]
[null,null,null,null,null,"+7"]
[null,null,null,null,null,"+7"]
[null,null,null,null,null,"+7"]
[null,null,null,null,null,"+7"]
[null,null,null,null,null,"+7"]
[null,null,null,null,null,"+7"]
[null,null,null,null,null,"+7"]
[null,null,null,null,null,"+7"]
[null,null,null,null,null,"+7"]
[null,null,null,null,null,"+7"]
[null,null,null,null,null,"+7"]
[null,null,null,null,null,"+7"]
[null,null,null,null,null,"+7"]
[null,null,null,null,null,"+7"]
[null,null,null,null,null,"+7"]
[null,null,null,null,null,"+7"]
[null,null,null,null,null,"+7"]
[null,null,null,null,null,"+7"]
[null,null,null,null,null,"+7"]
[null,null,null,null,null,"+7"]
[null,null,null,null,null,"+7"]
[null,null,null,null,null,"+7"]
[null,null,null,null,null,"+7"]
[null,null,null,null,null,"+7"]
[null,null,null,null,null,"+7"]
[null,null,null,null,null,"+7"]
[null,null,null,null,null,"+7"]
[null,null,null,null,null,"+7"]
[null,null,null,null,null,"+7"]
[null,null,null,null,null,"+7"]
[null,null,null,null,null,"+7"]
[null,null,null,null,null,"+7"]
[null,null,null,null,null,"+7"]
[null,null,null,null,null,"+7"]
[null,null,null,null,null,"+7"]
[null,null,null,null,null,"+7"]
[null,null,null,null,null,"+7"]
[null,null,null,null,null,"+7"]
[null,null,null,null,null,"+7"]
[null,null,null,null,null,"+7"]
[null,null,null,null,null,"+7"]
[null,null,null,null,null,"+7"]
[null,null,null,null,null,"+7"]
[null,null,null,null,null,"+7"]
[null,null,null,null,null,"+7"]
[null,null,null,null,null,"+7"]
[null,null,null,null,null,"+7"]
[null,null,null,null,null,"+7"]
[null,null,null,null,null,"+7"]
[null,null,null,null,null,"+7"]
[null,null,null,null,null,"+7"]
[null,null,null,null,null,"+7"]
[null,null,null,null,null,"+7"]
[null,null,null,null,null,"+7"]
[null,null,null,null,null,"+7"]
[null,null,null,null,null,"+7"]
[null,null,null,null,null,"+7"]
[null,null,null,null,null,"+7"]
[null,null,null,null,null,"+7"]
[null,null,null,null,null,"+7"]
[null,null,null,null,null,"+7"]
[null,null,null,null,null,"+7"]
[null,null,null,null,null,"+7"]
[null,null,null,null,null,"+7"]
[null,null,null,null,null,"+7"]
[null,null,null,null,null,"+7"]
[null,null,null,null,null,"+7"]
[null,null,null,null,null,"+7"]
[null,null,null,null,null,"+7"]
[null,null,null,null,null,"+7"]
[null,null,null,null,null,"+7"]
[null,null,null,null,null,"+7"]
[null,null,null,null,null,"+7"]
[null,null,null,null,null,"+7"]
[null,null,null,null,null,"+7"]
[null,null,null,null,null,"+7"]
[null,null,null,null,null,"+7"]
[null,null,null,null,null,"+7"]
[null,null,null,null,null,"+7"]
[null,null,null,null,null,"+7"]
[null,null,null,null,null,"+7"]
[null,null,null,null,null,"+7"]
[null,null,null,null,null,"+7"]
[null,null,null,null,null,"+7"]
[null,null,null,null,null,"+7"]
[null,null,null,null,null,"+7"]
[null,null,null,null,null,"+7"]
[null,null,null,null,null,"+7"]
[null,null,null,null,null,"+7"]
[null,null,null,null,null,"+7"]
[null,null,null,null,null,"+7"]
[null,null,null,null,null,"+7"]
[null,null,null,null,null,"+7"]
[null,null,null,null,null,"+7"]
[null,null,null,null,null,"+7"]
[null,null,null,null,null,"+7"]
[null,null,null,null,null,"+7"]
[null,null,null,null,null,"+7"]
[null,null,null,null,null,"+7"]
[null,null,null,null,null,"+7"]
[null,null,null,null,null,"+7"]
[null,null,null,null,null,"+7"]
[null,null,null,null,null,"+7"]
[null,null,null,null,null,"+7"]
[null,null,null,null,null,"+7"]
[null,null,null,null,null,"+7"]
[null,null,null,null,null,"+7"]
[null,null,null,null,null,"+7"]
[null,null,null,null,null,"+7"]
[null,null,null,null,null,"+7"]
[null,null,null,null,null,"+7"]
[null,null,null,null,null,"+7"]
[null,null,null,null,null,"+7"]
[null,null,null,null,null,"+7"]
[null,null,null,null,null,"+7"]
[null,null,null,null,null,"+7"]
[null,null,null,null,null,"+7"]
[null,null,null,null,null,"+7"]
[null,null,null,null,null,"+7"]
[null,null,null,null,null,"+7"]
[null,null,null,null,null,"+7"]
[null,null,null,null,null,"+7"]
[null,null,null,null,null,"+7"]
[null,null,null,null,null,"+7"]
[null,null,null,null,null,"+7"]
[null,null,null,null,null,"+7"]
[null,null,null,null,null,"+7"]
[null,null,null,null,null,"+7"]
[null,null,null,null,null,"+7"]
[null,null,null,null,null,"+7"]
[null,null,null,null,null,"+7"]
[null,null,null,null,null,"+7"]
[null,null,null,null,null,"+7"]
[null,null,null,null,null,"+7"]
[null,null,null,null,null,"+7"]
[null,null,null,null,null,"+7"]
[null,null,null,null,null,"+7"]
[null,null,null,null,null,"+7"]
[null,null,null,null,null,"+7"]
[null,null,null,null,null,"+7"]
[null,null,null,null,null,"+7"]
[null,null,null,null,null,"+7"]
[null,null,null,null,null,"+7"]
[null,null,null,null,null,"+7"]
[null,null,null,null,null,"+7"]
[null,null,null,null,null,"+7"]
[null,null,null,null,null,"+7"]
[null,null,null,null,null,"+7"]
[null,null,null,null,null,"+7"]
[null,null,null,null,null,"+7"]
[null,null,null,null,null,"+7"]
[null,null,null,null,null,"+7"]
[null,null,null,null,null,"+7"]
[null,null,null,null,null,"+7"]
[null,null,null,null,null,"+7"]
[null,null,null,null,null,"+7"]
[null,null,null,null,null,"+7"]
[null,null,null,null,null,"+7"]
[null,null,null,null,null,"+7"]
[null,null,null,null,null,"+7"]
[null,null,null,null,null,"+7"]
[null,null,null,null,null,"+7"]
[null,null,null,null,null,"+7"]
[null,null,null,null,null,"+7"]
[null,null,null,null,null,"+7"]
[null,null,null,null,null,"+7"]
[null,null,null,null,null,"+7"]
[null,null,null,null,null,"+7"]
[null,null,null,null,null,"+7"]
[null,null,null,null,null,"+7"]
[null,null,null,null,null,"+7"]
[null,null,null,null,null,"+7"]
[null,null,null,null,null,"+7"]
[null,null,null,null,null,"+7"]
[null,null,null,null,null,"+7"]
[null,null,null,null,null,"+7"]
[null,null,null,null,null,"+7"]
[null,null,null,null,null,"+7"]
[null,null,null,null,null,"+7"]
[null,null,null,null,null,"+7"]
[null,null,null,null,null,"+7"]
[null,null,null,null,null,"+7"]
[null,null,null,null,null,"+7"]
[null,null,null,null,null,"+7"]
[null,null,null,null,null,"+7"]
[null,null,null,null,null,"+7"]
[null,null,null,null,null,"+7"]
[null,null,null,null,null,"+7"]
[null,null,null,null,null,"+7"]
[null,null,null,null,null,"+7"]
[null,null,null,null,null,"+7"]
[null,null,null,null,null,"+7"]
[null,null,null,null,null,"+7"]
[null,null,null,null,null,"+7"]
[null,null,null,null,null,"+7"]
[null,null,null,null,null,"+7"]
[null,null,null,null,null,"+7"]
[null,null,null,null,null,"+7"]
[null,null,null,null,null,"+7"]
[null,null,null,null,null,"+7"]
[null,null,null,null,null,"+7"]
[null,null,null,null,null,"+7"]
[null,null,null,null,null,"+7"]
[null,null,null,null,null,"+7"]
[null,null,null,null,null,"+7"]
[null,null,null,null,null,"+7"]
[null,null,null,null,null,"+7"]
[null,null,null,null,null,"+7"]
[null,null,null,null,null,"+7"]
[null,null,null,null,null,"+7"]
[null,null,null,null,null,"+7"]
[null,null,null,null,null,"+7"]
[null,null,null,null,null,"+7"]
[null,null,null,null,null,"+7"]
[null,null,null,null,null,"+7"]
[null,null,null,null,null,"+7"]
[null,null,null,null,null,"+7"]
[null,null,null,null,null,"+7"]
[null,null,null,null,null,"+7"]
[null,null,null,null,null,"+7"]
[null,null,null,null,null,"+7"]
[null,null,null,null,null,"+7"]
[null,null,null,null,null,"+7"]
[null,null,null,null,null,"+7"]
[null,null,null,null,null,"+7"]
[null,null,null,null,null,"+7"]
[null,null,null,null,null,"+7"]
[null,null,null,null,null,"+7"]
[null,null,null,null,null,"+7"]
[null,null,null,null,null,"+7"]
[null,null,null,null,null,"+7"]
[null,null,null,null,null,"+7"]
[null,null,null,null,null,"+7"]
[null,null,null,null,null,"+7"]
[null,null,null,null,null,"+7"]
[null,null,null,null,null,"+7"]
[null,null,null,null,null,"+7"]
[null,null,null,null,null,"+7"]
[null,null,null,null,null,"+7"]
[null,null,null,null,null,"+7"]
[null,null,null,null,null,"+7"]
[null,null,null,null,null,"+7"]
[null,null,null,null,null,"+7"]
[null,null,null,null,null,"+7"]
[null,null,null,null,null,"+7"]
[null,null,null,null,null,"+7"]
[null,null,null,null,null,"+7"]
[null,null,null,null,null,"+7"]
[null,null,null,null,null,"+7"]
[null,null,null,null,null,"+7"]
[null,null,null,null,null,"+7"]
[null,null,null,null,null,"+7"]
[null,null,null,null,null,"+7"]
[null,null,null,null,null,"+7"]
[null,null,null,null,null,"+7"]
[null,null,null,null,null,"+7"]
[null,null,null,null,null,"+7"]
[null,null,null,null,null,"+7"]
[null,null,null,null,null,"+7"]
[null,null,null,null,null,"+7"]
[null,null,null,null,null,"+7"]
[null,null,null,null,null,"+7"]
[null,null,null,null,null,"+7"]
[null,null,null,null,null,"+7"]
[null,null,null,null,null,"+7"]
[null,null,null,null,null,"+7"]
[null,null,null,null,null,"+7"]
[null,null,null,null,null,"+7"]
[null,null,null,null,null,"+7"]
[null,null,null,null,null,"+7"]
[null,null,null,null,null,"+7"]
[null,null,null,null,null,"+7"]
[null,null,null,null,null,"+7"]
[null,null,null,null,null,"+7"]
[null,null,null,null,null,"+7"]
[null,null,null,null,null,"+7"]
[null,null,null,null,null,"+7"]
[null,null,null,null,null,"+7"]
[null,null,null,null,null,"+7"]
[null,null,null,null,null,"+7"]
[null,null,null,null,null,"+7"]
[null,null,null,null,null,"+7"]
[null,null,null,null,null,"+7"]
[null,null,null,null,null,"+7"]
[null,null,null,null,null,"+7"]
[null,null,null,null,null,"+7"]
[null,null,null,null,null,"+7"]
[null,null,null,null,null,"+7"]
[null,null,null,null,null,"+7"]
[null,null,null,null,null,"+7"]
[null,null,null,null,null,"+7"]
[null,null,null,null,null,"+7"]
[null,null,null,null,null,"+7"]
[null,null,null,null,null,"+7"]
[null,null,null,null,null,"+7"]
[null,null,null,null,null,"+7"]
[null,null,null,null,null,"+7"]
[null,null,null,null,null,"+7"]
[null,null,null,null,null,"+7"]
[null,null,null,null,null,"+7"]
[null,null,null,null,null,"+7"]
[null,null,null,null,null,"+7"]
[null,null,null,null,null,"+7"]
[null,null,null,null,null,"+7"]
[null,null,null,null,null,"+7"]
[null,null,null,null,null,"+7"]
[null,null,null,null,null,"+7"]
[null,null,null,null,null,"+7"]
[null,null,null,null,null,"+7"]
[null,null,null,null,null,"+7"]
[null,null,null,null,null,"+7"]
[null,null,null,null,null,"+7"]
[null,null,null,null,null,"+7"]
[null,null,null,null,null,"+7"]
[null,null,null,null,null,"+7"]
[null,null,null,null,null,"+7"]
[null,null,null,null,null,"+7"]
[null,null,null,null,null,"+7"]
[null,null,null,null,null,"+7"]
[null,null,null,null,null,"+7"]
[null,null,null,null,null,"+7"]
[null,null,null,null,null,"+7"]
[null,null,null,null,null,"+7"]
[null,null,null,null,null,"+7"]
[null,null,null,null,null,"+7"]
[null,null,null,null,null,"+7"]
[null,null,null,null,null,"+7"]
[null,null,null,null,null,"+7"]
[null,null,null,null,null,"+7"]
[null,null,null,null,null,"+7"]
[null,null,null,null,null,"+7"]
[null,null,null,null,null,"+7"]
[null,null,null,null,null,"+7"]
[null,null,null,null,null,"+7"]
[null,null,null,null,null,"+7"]
[null,null,null,null,null,"+7"]
[null,null,null,null,null,"+7"]
[null,null,null,null,null,"+7"]
[null,null,null,null,null,"+7"]
[null,null,null,null,null,"+7"]
[null,null,null,null,null,"+7"]
[null,null,null,null,null,"+7"]
[null,null,null,null,null,"+7"]
[null,null,null,null,null,"+7"]
[null,null,null,null,null,"+7"]
[null,null,null,null,null,"+7"]
[null,null,null,null,null,"+7"]
[null,null,null,null,null,"+7"]
[null,null,null,null,null,"+7"]
[null,null,null,null,null,"+7"]
[null,null,null,null,null,"+7"]
[null,null,null,null,null,"+7"]
[null,null,null,null,null,"+7"]
[null,null,null,null,null,"+7"]
[null,null,null,null,null,"+7"]
[null,null,null,null,null,"+7"]
[null,null,null,null,null,"+7"]
[null,null,null,null,null,"+7"]
[null,null,null,null,null,"+7"]
[null,null,null,null,null,"+7"]
[null,null,null,null,null,"+7"]
[null,null,null,null,null,"+7"]
[null,null,null,null,null,"+7"]
[null,null,null,null,null,"+7"]
[null,null,null,null,null,"+7"]
[null,null,null,null,null,"+7"]
[null,null,null,null,null,"+7"]
[null,null,null,null,null,"+7"]
[null,null,null,null,null,"+7"]
[null,null,null,null,null,"+7"]
[null,null,null,null,null,"+7"]
[null,null,null,null,null,"+7"]
[null,null,null,null,null,"+7"]
[null,null,null,null,null,"+7"]
[null,null,null,null,null,"+7"]
[null,null,null,null,null,"+7"]
[null,null,null,null,null,"+7"]
[null,null,null,null,null,"+7"]
[null,null,null,null,null,"+7"]
[null,null,null,null,null,"+7"]
[null,null,null,null,null,"+7"]
[null,null,null,null,null,"+7"]
[null,null,null,null,null,"+7"]
[null,null,null,null,null,"+7"]
[null,null,null,null,null,"+7"]
[null,null,null,null,null,"+7"]
[null,null,null,null,null,"+7"]
[null,null,null,null,null,"+7"]
[null,null,null,null,null,"+7"]
[null,null,null,null,null,"+7"]
[null,null,null,null,null,"+7"]
[null,null,null,null,null,"+7"]
[null,null,null,null,null,"+7"]
[null,null,null,null,null,"+7"]
[null,null,null,null,null,"+7"]
[null,null,null,null,null,"+7"]
[null,null,null,null,null,"+7"]
[null,null,null,null,null,"+7"]
[null,null,null,null,null,"+7"]
[null,null,null,null,null,"+7"]
[null,null,null,null,null,"+7"]
[null,null,null,null,null,"+7"]
[null,null,null,null,null,"+7"]
[null,null,null,null,null,"+7"]
[null,null,null,null,null,"+7"]
[null,null,null,null,null,"+7"]
[null,null,null,null,null,"+7"]
[null,null,null,null,null,"+7"]
[null,null,null,null,null,"+7"]
[null,null,null,null,null,"+7"]
[null,null,null,null,null,"+7"]
[null,null,null,null,null,"+7"]
[null,null,null,null,null,"+7"]
[null,null,null,null,null,"+7"]
[null,null,null,null,null,"+7"]
[null,null,null,null,null,"+7"]
[null,null,null,null,null,"+7"]
[null,null,null,null,null,"+7"]
[null,null,null,null,null,"+7"]
[null,null,null,null,null,"+7"]
[null,null,null,null,null,"+7"]
[null,null,null,null,null,"+7"]
[null,null,null,null,null,"+7"]
[null,null,null,null,null,"+7"]
[null,null,null,null,null,"+7"]
[null,null,null,null,null,"+7"]
[null,null,null,null,null,"+7"]
[null,null,null,null,null,"+7"]
[null,null,null,null,null,"+7"]
[null,null,null,null,null,"+7"]
[null,null,null,null,null,"+7"]
[null,null,null,null,null,"+7"]
[null,null,null,null,null,"+7"]
[null,null,null,null,null,"+7"]
[null,null,null,null,null,"+7"]
[null,null,null,null,null,"+7"]
[null,null,null,null,null,"+7"]
[null,null,null,null,null,"+7"]
[null,null,null,null,null,"+7"]
[null,null,null,null,null,"+7"]
[null,null,null,null,null,"+7"]
[null,null,null,null,null,"+7"]
[null,null,null,null,null,"+7"]
[null,null,null,null,null,"+7"]
[null,null,null,null,null,"+7"]
[null,null,null,null,null,"+7"]
[null,null,null,null,null,"+7"]
[null,null,null,null,null,"+7"]
[null,null,null,null,null,"+7"]
[null,null,null,null,null,"+7"]
[null,null,null,null,null,"+7"]
[null,null,null,null,null,"+7"]
[null,null,null,null,null,"+7"]
[null,null,null,null,null,"+7"]
[null,null,null,null,null,"+7"]
[null,null,null,null,null,"+7"]
[null,null,null,null,null,"+7"]
[null,null,null,null,null,"+7"]
[null,null,null,null,null,"+7"]
[null,null,null,null,null,"+7"]
[null,null,null,null,null,"+7"]
[null,null,null,null,null,"+7"]
[null,null,null,null,null,"+7"]
[null,null,null,null,null,"+7"]
[null,null,null,null,null,"+7"]
[null,null,null,null,null,"+7"]
[null,null,null,null,null,"+7"]
[null,null,null,null,null,"+7"]
[null,null,null,null,null,"+7"]
[null,null,null,null,null,"+7"]
[null,null,null,null,null,"+7"]
[null,null,null,null,null,"+7"]
[null,null,null,null,null,"+7"]
[null,null,null,null,null,"+7"]
[null,null,null,null,null,"+7"]
[null,null,null,null,null,"+7"]
[null,null,null,null,null,"+7"]
[null,null,null,null,null,"+7"]
[null,null,null,null,null,"+7"]
[null,null,null,null,null,"+7"]
[null,null,null,null,null,"+7"]
[null,null,null,null,null,"+7"]
[null,null,null,null,null,"+7"]
[null,null,null,null,null,"+7"]
[null,null,null,null,null,"+7"]
[null,null,null,null,null,"+7"]
[null,null,null,null,null,"+7"]
[null,null,null,null,null,"+7"]
[null,null,null,null,null,"+7"]
[null,null,null,null,null,"+7"]
[null,null,null,null,null,"+7"]
[null,null,null,null,null,"+7"]
[null,null,null,null,null,"+7"]
[null,null,null,null,null,"+7"]
[null,null,null,null,null,"+7"]
[null,null,null,null,null,"+7"]
[null,null,null,null,null,"+7"]
[null,null,null,null,null,"+7"]
[null,null,null,null,null,"+7"]
[null,null,null,null,null,"+7"]
[null,null,null,null,null,"+7"]
[null,null,null,null,null,"+7"]
[null,null,null,null,null,"+7"]
[null,null,null,null,null,"+7"]
[null,null,null,null,null,"+7"]
[null,null,null,null,null,"+7"]
[null,null,null,null,null,"+7"]
[null,null,null,null,null,"+7"]
[null,null,null,null,null,"+7"]
[null,null,null,null,null,"+7"]
[null,null,null,null,null,"+7"]
[null,null,null,null,null,"+7"]
[null,null,null,null,null,"+7"]
[null,null,null,null,null,"+7"]
[null,null,null,null,null,"+7"]
[null,null,null,null,null,"+7"]
[null,null,null,null,null,"+7"]
[null,null,null,null,null,"+7"]
[null,null,null,null,null,"+7"]
[null,null,null,null,null,"+7"]
[null,null,null,null,null,"+7"]
[null,null,null,null,null,"+7"]
[null,null,null,null,null,"+7"]
[null,null,null,null,null,"+7"]
[null,null,null,null,null,"+7"]
[null,null,null,null,null,"+7"]
[null,null,null,null,null,"+7"]
[null,null,null,null,null,"+7"]
[null,null,null,null,null,"+7"]
[null,null,null,null,null,"+7"]
[null,null,null,null,null,"+7"]
[null,null,null,null,null,"+7"]
[null,null,null,null,null,"+7"]
[null,null,null,null,null,"+7"]
[null,null,null,null,null,"+7"]
[null,null,null,null,null,"+7"]
[null,null,null,null,null,"+7"]
[null,null,null,null,null,"+7"]
[null,null,null,null,null,"+7"]
[null,null,null,null,null,"+7"]
[null,null,null,null,null,"+7"]
[null,null,null,null,null,"+7"]
[null,null,null,null,null,"+7"]
[null,null,null,null,null,"+7"]
[null,null,null,null,null,"+7"]
[null,null,null,null,null,"+7"]
[null,null,null,null,null,"+7"]
[null,null,null,null,null,"+7"]
[null,null,null,null,null,"+7"]
[null,null,null,null,null,"+7"]
[null,null,null,null,null,"+7"]
[null,null,null,null,null,"+7"]
[null,null,null,null,null,"+7"]
[null,null,null,null,null,"+7"]
[null,null,null,null,null,"+7"]
[null,null,null,null,null,"+7"]
[null,null,null,null,null,"+7"]
[null,null,null,null,null,"+7"]
[null,null,null,null,null,"+7"]
[null,null,null,null,null,"+7"]
[null,null,null,null,null,"+7"]
[null,null,null,null,null,"+7"]
[null,null,null,null,null,"+7"]
[null,null,null,null,null,"+7"]
[null,null,null,null,null,"+7"]
[null,null,null,null,null,"+7"]
[null,null,null,null,null,"+7"]
[null,null,null,null,null,"+7"]
[null,null,null,null,null,"+7"]
[null,null,null,null,null,"+7"]
[null,null,null,null,null,"+7"]
[null,null,null,null,null,"+7"]
[null,null,null,null,null,"+7"]
[null,null,null,null,null,"+7"]
[null,null,null,null,null,"+7"]
[null,null,null,null,null,"+7"]
[null,null,null,null,null,"+7"]
[null,null,null,null,null,"+7"]
[null,null,null,null,null,"+7"]
[null,null,null,null,null,"+7"]
[null,null,null,null,null,"+7"]
[null,null,null,null,null,"+7"]
[null,null,null,null,null,"+7"]
[null,null,null,null,null,"+7"]
[null,null,null,null,null,"+7"]
[null,null,null,null,null,"+7"]
[null,null,null,null,null,"+7"]
[null,null,null,null,null,"+7"]
[null,null,null,null,null,"+7"]
[null,null,null,null,null,"+7"]
[null,null,null,null,null,"+7"]
[null,null,null,null,null,"+7"]
[null,null,null,null,null,"+7"]
[null,null,null,null,null,"+7"]
[null,null,null,null,null,"+7"]
[null,null,null,null,null,"+7"]
[null,null,null,null,null,"+7"]
[null,null,null,null,null,"+7"]
[null,null,null,null,null,"+7"]
[null,null,null,null,null,"+7"]
[null,null,null,null,null,"+7"]
[null,null,null,null,null,"+7"]
[null,null,null,null,null,"+7"]
[null,null,null,null,null,"+7"]
[null,null,null,null,null,"+7"]
[null,null,null,null,null,"+7"]
[null,null,null,null,null,"+7"]
[null,null,null,null,null,"+7"]
[null,null,null,null,null,"+7"]
[null,null,null,null,null,"+7"]
[null,null,null,null,null,"+7"]
[null,null,null,null,null,"+7"]
[null,null,null,null,null,"+7"]
[null,null,null,null,null,"+7"]
[null,null,null,null,null,"+7"]
[null,null,null,null,null,"+7"]
[null,null,null,null,null,"+7"]
[null,null,null,null,null,"+7"]
[null,null,null,null,null,"+7"]
[null,null,null,null,null,"+7"]
[null,null,null,null,null,"+7"]
[null,null,null,null,null,"+7"]
[null,null,null,null,null,"+7"]
[null,null,null,null,null,"+7"]
[null,null,null,null,null,"+7"]
[null,null,null,null,null,"+7"]
[null,null,null,null,null,"+7"]
[null,null,null,null,null,"+7"]
[null,null,null,null,null,"+7"]
[null,null,null,null,null,"+7"]
[null,null,null,null,null,"+7"]
[null,null,null,null,null,"+7"]
[null,null,null,null,null,"+7"]
[null,null,null,null,null,"+7"]
[null,null,null,null,null,"+7"]
[null,null,null,null,null,"+7"]
[null,null,null,null,null,"+7"]
[null,null,null,null,null,"+7"]
[null,null,null,null,null,"+7"]
[null,null,null,null,null,"+7"]
[null,null,null,null,null,"+7"]
[null,null,null,null,null,"+7"]
[null,null,null,null,null,"+7"]
[null,null,null,null,null,"+7"]
[null,null,null,null,null,"+7"]
[null,null,null,null,null,"+7"]
[null,null,null,null,null,"+7"]
[null,null,null,null,null,"+7"]
[null,null,null,null,null,"+7"]
[null,null,null,null,null,"+7"]
[null,null,null,null,null,"+7"]
[null,null,null,null,null,"+7"]
[null,null,null,null,null,"+7"]
[null,null,null,null,null,"+7"]
[null,null,null,null,null,"+7"]
[null,null,null,null,null,"+7"]
[null,null,null,null,null,"+7"]
[null,null,null,null,null,"+7"]
[null,null,null,null,null,"+7"]
[null,null,null,null,null,"+7"]
[null,null,null,null,null,"+7"]
[null,null,null,null,null,"+7"]
[null,null,null,null,null,"+7"]
[null,null,null,null,null,"+7"]
[null,null,null,null,null,"+7"]
[null,null,null,null,null,"+7"]
[null,null,null,null,null,"+7"]
[null,null,null,null,null,"+7"]
[null,null,null,null,null,"+7"]
[null,null,null,null,null,"+7"]
[null,null,null,null,null,"+7"]
[null,null,null,null,null,"+7"]
[null,null,null,null,null,"+7"]
[null,null,null,null,null,"+7"]
[null,null,null,null,null,"+7"]
[null,null,null,null,null,"+7"]
[null,null,null,null,null,"+7"]
[null,null,null,null,null,"+7"]
[null,null,null,null,null,"+7"]
[null,null,null,null,null,"+7"]
[null,null,null,null,null,"+7"]
[null,null,null,null,null,"+7"]
[null,null,null,null,null,"+7"]
[null,null,null,null,null,"+7"]
[null,null,null,null,null,"+7"]
[null,null,null,null,null,"+7"]
[null,null,null,null,null,"+7"]
[null,null,null,null,null,"+7"]
[null,null,null,null,null,"+7"]
[null,null,null,null,null,"+7"]
[null,null,null,null,null,"+7"]
[null,null,null,null,null,"+7"]
[null,null,null,null,null,"+7"]
[null,null,null,null,null,"+7"]
[null,null,null,null,null,"+7"]
[null,null,null,null,null,"+7"]
[null,null,null,null,null,"+7"]
[null,null,null,null,null,"+7"]
[null,null,null,null,null,"+7"]
[null,null,null,null,null,"+7"]
[null,null,null,null,null,"+7"]
[null,null,null,null,null,"+7"]
[null,null,null,null,null,"+7"]
[null,null,null,null,null,"+7"]
[null,null,null,null,null,"+7"]
[null,null,null,null,null,"+7"]
[null,null,null,null,null,"+7"]
[null,null,null,null,null,"+7"]
[null,null,null,null,null,"+7"]
[null,null,null,null,null,"+7"]
[null,null,null,null,null,"+7"]
[null,null,null,null,null,"+7"]
[null,null,null,null,null,"+7"]
[null,null,null,null,null,"+7"]
[null,null,null,null,null,"+7"]
[null,null,null,null,null,"+7"]
[null,null,null,null,null,"+7"]
[null,null,null,null,null,"+7"]
[null,null,null,null,null,"+7"]
[null,null,null,null,null,"+7"]
[null,null,null,null,null,"+7"]
[null,null,null,null,null,"+7"]
[null,null,null,null,null,"+7"]
[null,null,null,null,null,"+7"]
[null,null,null,null,null,"+7"]
[null,null,null,null,null,"+7"]
[null,null,null,null,null,"+7"]
[null,null,null,null,null,"+7"]
[null,null,null,null,null,"+7"]
[null,null,null,null,null,"+7"]

{"sheet":"подсчет","index":1,"n_rows":0,"n_cols":0,"rows_kept":0,"cut":false,"hidden":false,"merged":[]}

{"sheet":"города","index":2,"n_rows":86,"n_cols":8,"rows_kept":86,"cut":false,"hidden":false,"merged":[]}
[null,null,"Карелия Республика","_______",10,{"$f":"CONCATENATE(C1,D1,E1)","v":"Карелия Республика_______10"},"адыгейс"]
["Адыгейск","____","Коми Республика","_______",11,{"$f":"CONCATENATE(C2,D2,E2)","v":"Коми Республика_______11"}]
["Агидель","____","Марий Эл Республика","_______",12,"Марий Эл Республика_______12",null,{"$f":"F3","v":"Марий Эл Республика_______12"}]
["Бабушкин","____","Мордовия Республика","_______",13,"Мордовия Республика_______13",null,{"$f":"F4","v":"Мордовия Республика_______13"}]
["Горно-Алтайск","____","Саха /Якутия/ Республика","_______",14,"Саха /Якутия/ Республика_______14",null,{"$f":"F5","v":"Саха /Якутия/ Республика_______14"}]
["Буйнакск","____","Северная Осетия - Алания Республика","_______",15,"Северная Осетия - Алания Республика_______15"]
["Карабулак","____","Татарстан Республика","_______",16,"Татарстан Республика_______16"]
["Баксан","____","Тыва Республика","_______",17,"Тыва Республика_______17"]
["Городовиковск","____","Удмуртская Республика","_______",18,"Удмуртская Республика_______18"]
["Карачаевск","____","Хакасия Республика","_______",19,"Хакасия Республика_______19"]
["Беломорск","____","Чувашская Республика - Чувашия","_______",21,"Чувашская Республика - Чувашия_______21"]
["Воркута","____","Алтайский Край","_______",22,"Алтайский Край_______22"]
["Волжск","____","Краснодарский Край","_______",23,"Краснодарский Край_______23"]
["Ардатов","____","Красноярский Край","_______",24,"Красноярский Край_______24"]
["Алдан","____","Приморский Край","_______",25,"Приморский Край_______25"]
["Алагир","____","Ставропольский Край","_______",26,"Ставропольский Край_______26"]
["Агрыз","____","Хабаровский Край","_______",27,"Хабаровский Край_______27"]
["Ак-Довурак","____","Амурская Область","_______",28,"Амурская Область_______28"]
["Воткинск","____","Архангельская Область","_______",29,"Архангельская Область_______29"]
["Абаза","____","Астраханская Область","_______",30,"Астраханская Область_______30"]
["Аргун","____","Белгородская Область","_______",31,"Белгородская Область_______31"]
["Алатырь","____","Брянская Область","_______",32,"Брянская Область_______32"]
["Алейск","____","Владимирская Область","_______",33,"Владимирская Область_______33"]
["Абинск","____","Волгоградская Область","_______",34,"Волгоградская Область_______34"]
["Артемовск","____","Вологодская Область","_______",35,"Вологодская Область_______35"]
["Арсеньев","____","Воронежская Область","_______",36,"Воронежская Область_______36"]
["Благодарный","____","Ивановская Область","_______",37,"Ивановская Область_______37"]
["Амурск","____","Иркутская Область","_______",38,"Иркутская Область_______38"]
["Белогорск","____","Калининградская Область","_______",39,"Калининградская Область_______39"]
["Архангельск","____","Калужская Область","_______",40,"Калужская Область_______40"]
["Астрахань","____","Камчатский Край","_______",41,"Камчатский Край_______41"]
["Алексеевка","____","Кемеровская Область","_______",42,"Кемеровская Область_______42"]
["Брянск","____","Кировская Область","_______",43,"Кировская Область_______43"]
["Александров","____","Костромская Область","_______",44,"Костромская Область_______44"]
["Волгоград","____","Курганская Область","_______",45,"Курганская Область_______45"]
["Бабаево","____","Курская Область","_______",46,"Курская Область_______46"]
["Бобров","____","Ленинградская Область","_______",47,"Ленинградская Область_______47"]
["Вичуга","____","Липецкая Область","_______",48,"Липецкая Область_______48"]
["Алзамай","____","Магаданская Область","_______",49,"Магаданская Область_______49"]
["Багратионовск","____","Московская Область","_______",50,"Московская Область_______50"]
["Балабаново","____","Мурманская Область","_______",51,"Мурманская Область_______51"]
["Вилючинск","____","Нижегородская Область","_______",52,"Нижегородская Область_______52"]
["Анжеро-Судженск","____","Новгородская Область","_______",53,"Новгородская Область_______53"]
["Белая Холуница","____","Новосибирская Область","_______",54,"Новосибирская Область_______54"]
["Буй","____","Омская Область","_______",55,"Омская Область_______55"]
["Далматово","____","Оренбургская Область","_______",56,"Оренбургская Область_______56"]
["Дмитриев","____","Орловская Область","_______",57,"Орловская Область_______57"]
["Бокситогорск","____","Пензенская Область","_______",58,"Пензенская Область_______58"]
["Грязи","____","Пермский Край","_______",59,"Пермский Край_______59"]
["Магадан","____","Псковская Область","_______",60,"Псковская Область_______60"]
["Апрелевка","____","Ростовская Область","_______",61,"Ростовская Область_______61"]
["Апатиты","____","Рязанская Область","_______",62,"Рязанская Область_______62"]
["Арзамас","____","Самарская Область","_______",63,"Самарская Область_______63"]
["Боровичи","____","Саратовская Область","_______",64,"Саратовская Область_______64"]
["Барабинск","____","Сахалинская Область","_______",65,"Сахалинская Область_______65"]
["Исилькуль","____","Свердловская Область","_______",66,"Свердловская Область_______66"]
["Абдулино","____","Смоленская Область","_______",67,"Смоленская Область_______67"]
["Болхов","____","Тамбовская Область","_______",68,"Тамбовская Область_______68"]
["Белинский","____","Тверская Область","_______",69,"Тверская Область_______69"]
["Александровск","____","Томская Область","_______",70,"Томская Область_______70"]
["Великие Луки","____","Тульская Область","_______",71,"Тульская Область_______71"]
["Азов","____","Тюменская Область","_______",72,"Тюменская Область_______72"]
["Касимов","____","Ульяновская Область","_______",73,"Ульяновская Область_______73"]
["Жигулевск","____","Челябинская Область","_______",74,"Челябинская Область_______74"]
["Аркадак","____","Забайкальский Край","_______",75,"Забайкальский Край_______75"]
["Александровск-Сахалинский","____","Ярославская Область","_______",76,{"$f":"CONCATENATE(C66,D66,E66)","v":"Ярославская Область_______76"}]
["Алапаевск","____","Москва Город","_______",77,"Москва Город_______77"]
["Велиж","____","Санкт-Петербург Город","_______",78,"Санкт-Петербург Город_______78"]
["Жердевка","____","Еврейская Автономная область","_______",79,"Еврейская Автономная область_______79"]
["Андреаполь","____","Ненецкий Автономный округ","_______",83,"Ненецкий Автономный округ_______83"]
["Асино","____","Ханты-Мансийский Автономный округ - Югра Автономный округ","_______",86,"Ханты-Мансийский Автономный округ - Югра Автономный округ_______86"]
["Алексин","____","Чукотский Автономный округ","_______",87,"Чукотский Автономный округ_______87"]
["Заводоуковск","____","Ямало-Ненецкий Автономный округ","_______",89,"Ямало-Ненецкий Автономный округ_______89"]
["Барыш","____","Севастополь Город","_______",92,"Севастополь Город_______92"]
["Аша","____","Екатеренбург","_______",96,"Екатеренбург_______96"]
["Балей","____","Адыгея Республика","_______","01","Адыгея Республика_______01"]
["Гаврилов-Ям","____","Башкортостан Республика","_______","02","Башкортостан Республика_______02"]
["Зеленоград","____","Бурятия Республика","_______","03","Бурятия Республика_______03"]
["Зеленогорск","____","Алтай Республика","_______","04","Алтай Республика_______04"]
["Биробиджан","____","Дагестан Республика","_______","05","Дагестан Республика_______05"]
["Нарьян-Мар","____","Ингушетия Республика","_______","06","Ингушетия Республика_______06"]
["Белоярский","____","Кабардино-Балкарская Республика","_______","07","Кабардино-Балкарская Республика_______07"]
["Анадырь","____","Калмыкия Республика","_______","08","Калмыкия Республика_______08"]
["Губкинский","____","Карачаево-Черкесская Республика","_______","09","Карачаево-Черкесская Республика_______09"]
["Алупка","____","Крым Республика","_______","82","Крым Республика_______82"]
["Инкерман","____","Чеченская Республика","_______","95","Чеченская Республика_______95"]

{"sheet":"Марки_авто","index":3,"n_rows":190,"n_cols":1,"rows_kept":190,"cut":false,"hidden":true,"merged":[]}
[]
["AlfaRomeo"]
["Audi"]
["BAW"]
["BMW"]
["Caterpillar"]
["CF Moto"]
["Chevrolet"]
["Citroen"]
["Daewoo"]
["DAF"]
["DIMEX"]
["DongFeng"]
["FAW"]
["Fiat"]
["Ford"]
["Foton"]
["Haval"]
["Howo"]
["Huebner"]
["Huta Stalowa Wola S.A. (HSW)"]
["Honda"]
["Hyundai"]
["Isuzu"]
["Jaguar"]
["Jeep"]
["Kia"]
["LandRover"]
["LongGong"]
["Lexus"]
["Man"]
["Mazda"]
["Mercedes Benz"]
["Mitsubishi"]
["Nissan"]
["Opel"]
["Peugeot"]
["Porsche"]
["Renault"]
["Rover"]
["Saab"]
["Scania"]
["Suzuki Moto"]
["Shaanxi"]
["Skoda"]
["SsangYong"]
["Subaru"]
["Suzuki"]
["Toyota"]
["Volkswagen"]
["Volvo"]
["Way Industry"]
["Xiamen"]
["ZF"]
["АЗЛК"]
["ВАЗ"]
["ГАЗ"]
["ЗАЗ"]
["ЗИЛ"]
["ИЖ"]
["ЛуАЗ"]
["РАФ"]
["УАЗ"]
["Автокомпонент Плюс"]
["БелАЗ"]
["ГАЗ"]
["ЗИЛ"]
["КАЗ"]
["КамАЗ"]
["КРАЗ"]
["МАЗ"]
["Мадара"]
["МЗКТ"]
["МоАЗ"]
["НефАЗ"]
["СЗАП"]
["Студебеккер"]
["ТАТРА"]
["Тонар"]
["Урал"]
["ЧМЗАП"]
["Автокран"]
["Автопогрузчик ЗАО"]
["Алтайлесмаш"]
["Амкодор"]
["АОМЗ"]
["АТЕК"]
["АТЗ"]
["АТЭК"]
["Балканкар Рекорд"]
["БОРЕКС"]
["Бобруйскагромаш"]
["Брянский арсенал"]
["Булат завод АО"]
["ВгТЗ"]
["ВПМЗ"]
["Воронежсельмаш"]
["ВТЗ"]
["ВЭКС"]
["ГАЗ"]
["Геомаш"]
["Гидромаш"]
["Гомсельмаш"]
["ДКЗ"]
["Донекс"]
["Дормаш ЗАО"]
["Дормашина ОАО"]
["ДЭЗ"]
["ЕлАЗ"]
["ЗиД"]
["ИЖМОТО"]
["ИМЗ"]
["КЗК"]
["КЗКТ"]
["Кировец-Ландтехник"]
["ККЗ"]
["Клевер"]
["КМЗ"]
["Канаш-электрокар"]
["Ковровец"]
["Коммаш"]
["Кранекс"]
["Красная звезда ОАО"]
["КЭЗ"]
["Лидсельмаш"]
["ЛТЗ"]
["МАЗ"]
["МЗиК"]
["МЗКМ"]
["МоАЗ"]
["МТЗ"]
["НефАЗ"]
["ОНЕЖЕЦ"]
["Орел-Погрузчик ЗАО"]
["ППС Детва"]
["Промтрактор"]
["ПТЗ"]
["Раскат"]
["Ростсельмаш (РСМ)"]
["Русская механика"]
["Сатурн НПО"]
["Сибсельмаш"]
["ТВЭКС"]
["ТеКЗ"]
["ТКЗ"]
["УВЗ"]
["Угличмаш"]
["УЗТМ"]
["УМПО"]
["Фортшритт"]
["ХЗТСШ"]
["ХТЗ"]
["ЧЗКМ"]
["ЧСДМ"]
["ЧТЗ"]
["ЭКСКО"]
["ЮМЗ"]
["ЮрМаш"]
["ЯВА"]
["Амаз"]
["Богдан"]
["ЗИЛ"]
["Икарус"]
["КАВЗ"]
["КамАЗ"]
["Кароса"]
["ЛАЗ"]
["ЛЗГМП"]
["ЛиАЗ"]
["МАЗ"]
["НефАЗ"]
["ПАЗ"]
["Барнаултрансмаш"]
["БМЗ"]
["ВТЗ"]
["ГАЗ"]
["КамАЗ"]
["ММЗ"]
["СМД"]
["ТМЗ"]
["УМЗ"]
["ЧТЗ"]
["ЮМЗ"]
["ЯЗДА"]
["ЯМЗ"]
["БМЗ"]
["Лугансктепловоз"]
["Пенздизельмаш ОАО"]
["ПТМЗ"]
["ЯМЗ"]